[Event "44th Chess Olympiad Open 2022"]
[Site "Chennai"]
[Date "2022.08.09"]
[Round "11.76"]
[White "da Conceicao, Marcos"]
[Black "seder mohamad"]
[Result "0-1"]
[ECO "C00"]
[WhiteElo "1713"]
[BlackElo "1950"]
[Annotator "TA"]
[PlyCount "34"]
[EventDate "2022.07.29"]
[EventType "team-tourn"]
[EventCountry "IND"]
[SourceTitle "playchess.com"]
[Source "ChessBase"]
[SourceQuality "1"]
[WhiteTeam "TLS"]
[BlackTeam "Palestine"]
[BlackTeamCountry "PLE"]
[TimeControl "40/5400+30:1800+30"]

{[%evp 9,34,-38,0,-3,-16,-14,0,-6,-18,-23,-20,-23,-22,-57,-51,-47,-60,-120,-123,-310,-79,-501,-491,-29997,-408,-29998,-29999]} 1. e4 {[%emt 0:01:36]} e6 {[%emt 0:00:06]} 2. b3 {[%emt 0:00:27]} d5 {[%emt 0:00:30]} 3. exd5 {[%emt 0:00:43]} exd5 {[%emt 0:00:07]} 4. Bb2 {[%emt 0:00:19]} Nf6 {[%emt 0:00:53]} 5. d4 {[%emt 0:00:15]} Bf5 {[%emt 0:00:49]} 6. Nf3 {[%emt 0:00:34] C00: French: Unusual White 2nd moves.} Bd6 {[%emt 0:01:10]} 7. Be2 {[%emt 0:00:30]} O-O {[%emt 0:01:01]} 8. O-O {[%emt 0:00:07] The position is equal.} Nbd7 {[%emt 0:01:23]} 9. Nbd2 {[%emt 0:00:28]} Re8 {[%emt 0:03:08][%cal Of5c2] [#]} 10. c4 $146 {[%emt 0:00:19]} ({Predecessor:} 10. Re1 c6 11. c4 Bf4 12. Nh4 Be6 13. Qc2 Ne4 14. Nxe4 dxe4 15. Qxe4 Qxh4 16. g3 Bxg3 17. fxg3 Qxe4 {0-1 (27) Caballero Castro,C (1561)-Serrato,R (1871) Tunja 2018}) 10... c6 {[%emt 0:00:44]} 11. c5 {[%emt 0:00:53]} Bc7 {[%emt 0:01:02]} 12. Re1 {[%emt 0:00:49]} Ne4 {[%emt 0:02:11]} 13. h3 {[%emt 0:02:39]} ({Better is} 13. b4 $15) 13... Qf6 $17 {[%emt 0:02:49] Black is much more active.} 14. Nf1 $2 {[%emt 0:02:11] [#]} (14. Qc1 $17 {was worth a try.}) 14... Qe6 $2 {[%emt 0:02:39]} (14... Bxh3 $1 $19 {[%mdl 512] and Black stays clearly on top.} 15. Ne3 {[#]} Qf4 $1) 15. Ne3 {[%emt 0:02:23][%mdl 8192]} (15. Bd3 $17 {is tougher.}) 15... Nxf2 $19 {[%emt 0:00:11]} 16. Kxf2 {[%emt 0:01:06]} (16. Qd2 $19 Qxe3 17. Qxe3 Nxh3+ 18. gxh3 Rxe3 19. Kf2) 16... Qxe3+ {[%emt 0:00:01]} 17. Kf1 {[%emt 0:01:43]} Bg3 {[%emt 0:00:02] Weighted Error Value: White=1.30/Black=0.35} 0-1

[Event "44th Chess Olympiad Open 2022"]
[Site "Chennai"]
[Date "2022.08.09"]
[Round "11.76"]
[White "Guterres, Cosme"]
[Black "Altell, Majed"]
[Result "0-1"]
[ECO "D05"]
[WhiteElo "1692"]
[BlackElo "1807"]
[Annotator "NA RC COMBH"]
[PlyCount "68"]
[EventDate "2022.07.29"]
[EventType "team-tourn"]
[EventCountry "IND"]
[SourceTitle "playchess.com"]
[Source "ChessBase"]
[SourceQuality "1"]
[WhiteTeam "TLS"]
[BlackTeam "Palestine"]
[BlackTeamCountry "PLE"]
[TimeControl "40/5400+30:1800+30"]

1. d4 {[%emt 0:00:05]} Nf6 {[%emt 0:00:04]} 2. Nf3 {[%emt 0:01:03]} d5 {[%emt 0:00:34]} 3. c3 {[%emt 0:00:21]} c5 {[%emt 0:00:08]} 4. e3 {[%emt 0:00:24]} Nc6 {[%emt 0:00:11]} 5. Bd3 {[%emt 0:00:42]} Bg4 {[%emt 0:01:21]} 6. h3 {[%emt 0:00:40]} Bh5 {[%emt 0:00:31]} 7. Qc2 {[%emt 0:01:12]} e6 {[%emt 0:00:43]} 8. Nbd2 {[%emt 0:00:30]} c4 {[%emt 0:00:51]} 9. Be2 {[%emt 0:00:25]} Bd6 {[%emt 0:00:57]} 10. Nf1 {[%emt 0:00:49]} O-O {[%emt 0:00:33]} 11. Qd1 {[%emt 0:00:32]} Qc7 {[%emt 0:01:29]} 12. Ng1 {[%emt 0:01:56]} Bg6 {[%emt 0:00:33]} 13. f4 {[%emt 0:00:28]} Ne4 {[%emt 0:00:47]} 14. Nf3 {[%emt 0:00:41]} f6 {[%emt 0:01:02]} 15. g3 {[%emt 0:02:48]} Ne7 {[%emt 0:02:37]} 16. Nh4 {[%emt 0:01:01]} Bf7 {[%emt 0:00:54]} 17. Bf3 {[%emt 0:00:40]} Ng6 {[%emt 0:06:35]} 18. Ng2 {[%emt 0:00:33]} e5 {[%emt 0:01:47]} 19. Bxe4 {[%emt 0:01:40]} dxe4 {[%emt 0:00:06]} 20. dxe5 {[%emt 0:03:35]} fxe5 {[%emt 0:00:06]} 21. f5 {[%emt 0:02:10]} Ne7 {[%emt 0:00:13]} 22. g4 {[%emt 0:00:36]} Rad8 {[%emt 0:00:24]} 23. Nd2 {[%emt 0:01:06]} Bc5 {[%emt 0:00:53]} 24. Qe2 {[%emt 0:00:24]} Rd3 {[%emt 0:06:57]} 25. O-O {[%emt 0:00:46]} Qc6 {[%emt 0:00:46]} 26. Kh2 {[%emt 0:01:04]} Bd5 {[%emt 0:02:47]} 27. Rf2 {[%emt 0:03:09]} Qh6 {[%emt 0:01:46]} 28. Nf1 {[%emt 0:00:48]} Bc6 {[%emt 0:00:43]} 29. Bd2 {[%emt 0:01:53]} Nd5 {[%emt 0:02:37]} 30. Re1 {[%emt 0:02:06]} Rd8 {[%emt 0:01:15]} 31. Bc1 {[%emt 0:01:15]} b5 {[%emt 0:00:46]} 32. a3 {[%emt 0:00:28]} Bd6 {[%emt 0:01:32]} 33. Qc2 {[%emt 0:01:07]} Nf4 {[%emt 0:00:53]} 34. exf4 {[%emt 0:03:06]} Rxh3+ {[%emt 0:00:27]} 0-1

[Event "44th Chess Olympiad Open 2022"]
[Site "Chennai"]
[Date "2022.08.09"]
[Round "11.77"]
[White "Vasco Mateus Felizardo Viageir"]
[Black "Esungi, Guy Botetsi"]
[Result "1-0"]
[ECO "C62"]
[WhiteElo "1852"]
[BlackElo "1481"]
[Annotator "NA RC COMBH"]
[PlyCount "49"]
[EventDate "2022.07.29"]
[EventType "team-tourn"]
[EventCountry "IND"]
[SourceTitle "playchess.com"]
[Source "ChessBase"]
[SourceQuality "1"]
[WhiteTeam "Mozambique"]
[BlackTeam "COD"]
[WhiteTeamCountry "MOZ"]
[TimeControl "40/5400+30:1800+30"]

1. e4 {[%emt 0:00:03]} e5 {[%emt 0:01:41]} 2. Nf3 {[%emt 0:00:11]} d6 {[%emt 0:01:04]} 3. d4 {[%emt 0:00:38]} exd4 {[%emt 0:02:09]} 4. Qxd4 {[%emt 0:01:31]} Nc6 {[%emt 0:01:23]} 5. Bb5 {[%emt 0:01:59]} Bd7 {[%emt 0:00:48]} 6. Bxc6 {[%emt 0:00:52]} Bxc6 {[%emt 0:00:45]} 7. Nc3 {[%emt 0:00:31]} Be7 {[%emt 0:01:56]} 8. Qxg7 {[%emt 0:03:14]} Bf6 {[%emt 0:01:43]} 9. Qg3 {[%emt 0:03:34]} Bxc3+ {[%emt 0:01:16]} 10. bxc3 {[%emt 0:00:03]} Qf6 {[%emt 0:04:19]} 11. O-O {[%emt 0:00:36]} Qxc3 {[%emt 0:04:23]} 12. Be3 {[%emt 0:01:16]} Bxe4 {[%emt 0:04:18]} 13. Bd4 {[%emt 0:00:24]} Qxc2 {[%emt 0:06:23]} 14. Bxh8 {[%emt 0:01:11]} Kd7 {[%emt 0:00:57]} 15. Rfe1 {[%emt 0:01:17]} Bg6 {[%emt 0:01:06]} 16. Rad1 {[%emt 0:02:52]} Ne7 {[%emt 0:03:22]} 17. Ne5+ {[%emt 0:00:10]} Ke8 {[%emt 0:03:53]} 18. Nxg6 {[%emt 0:00:18]} hxg6 {[%emt 0:00:53]} 19. Qg5 {[%emt 0:00:29]} Kd7 {[%emt 0:06:46]} 20. Qxe7+ {[%emt 0:01:05]} Kc6 {[%emt 0:00:15]} 21. Rc1 {[%emt 0:00:04]} Qxc1 {[%emt 0:00:52]} 22. Rxc1+ {[%emt 0:00:05]} Kb6 {[%emt 0:01:25]} 23. Qxc7+ {[%emt 0:01:02]} Ka6 {[%emt 0:00:43]} 24. Qc4+ {[%emt 0:00:23]} b5 {[%emt 0:02:14]} 25. Qc6+ {[%emt 0:00:18]} 1-0

[Event "44th Chess Olympiad Open 2022"]
[Site "Chennai"]
[Date "2022.08.09"]
[Round "11.77"]
[White "Masiala Mayuku, Eddy"]
[Black "Napoleao, Lourenco"]
[Result "0-1"]
[ECO "D02"]
[WhiteElo "1574"]
[BlackElo "1778"]
[Annotator "NA RC COMBH"]
[PlyCount "82"]
[EventDate "2022.07.29"]
[EventType "team-tourn"]
[EventCountry "IND"]
[SourceTitle "playchess.com"]
[Source "ChessBase"]
[SourceQuality "1"]
[WhiteTeam "COD"]
[BlackTeam "Mozambique"]
[BlackTeamCountry "MOZ"]
[TimeControl "40/5400+30:1800+30"]

1. d4 {[%emt 0:00:14]} d5 {[%emt 0:00:13]} 2. Nf3 {[%emt 0:00:14]} Nf6 {[%emt 0:00:07]} 3. g3 {[%emt 0:00:29]} e6 {[%emt 0:00:06]} 4. Bg2 {[%emt 0:00:24]} Be7 {[%emt 0:00:02]} 5. O-O {[%emt 0:00:13]} O-O {[%emt 0:00:03]} 6. Qd2 {[%emt 0:01:04]} c5 {[%emt 0:00:58]} 7. c3 {[%emt 0:00:17]} Nc6 {[%emt 0:00:21]} 8. Re1 {[%emt 0:00:19]} Qb6 {[%emt 0:00:31]} 9. e3 {[%emt 0:01:19]} Bd7 {[%emt 0:00:14]} 10. dxc5 {[%emt 0:02:36]} Bxc5 {[%emt 0:00:15]} 11. b4 {[%emt 0:00:30]} Bd6 {[%emt 0:02:08]} 12. Bb2 {[%emt 0:00:49]} a5 {[%emt 0:00:46]} 13. a3 {[%emt 0:01:10]} Rfc8 {[%emt 0:00:51]} 14. Qd3 {[%emt 0:02:46]} e5 {[%emt 0:00:47]} 15. Qd1 {[%emt 0:01:23]} e4 {[%emt 0:01:16]} 16. Nd4 {[%emt 0:00:38]} Ne5 {[%emt 0:00:12]} 17. f3 {[%emt 0:01:41]} exf3 {[%emt 0:03:20]} 18. Bxf3 {[%emt 0:01:40]} Nc4 {[%emt 0:00:48]} 19. Qe2 {[%emt 0:01:49]} Re8 {[%emt 0:00:44]} 20. Qf2 {[%emt 0:01:49]} Re7 {[%emt 0:03:39]} 21. Kh1 {[%emt 0:02:01]} Rae8 {[%emt 0:00:35]} 22. Bc1 {[%emt 0:00:09]} Bh3 {[%emt 0:03:10]} 23. Ra2 {[%emt 0:00:43]} axb4 {[%emt 0:00:22]} 24. axb4 {[%emt 0:01:00]} Bxb4 {[%emt 0:01:15]} 25. cxb4 {[%emt 0:04:27]} Qxd4 {[%emt 0:00:21]} 26. Rae2 {[%emt 0:00:41]} Qb6 {[%emt 0:02:07]} 27. g4 {[%emt 0:02:15]} Bxg4 {[%emt 0:04:33]} 28. Bxg4 {[%emt 0:01:02]} Nxg4 {[%emt 0:00:10]} 29. Qg3 {[%emt 0:00:21]} Nf6 {[%emt 0:03:13]} 30. Na3 {[%emt 0:04:08]} Nxa3 {[%emt 0:03:19]} 31. Bxa3 {[%emt 0:00:18]} d4 {[%emt 0:00:12]} 32. Bb2 {[%emt 0:01:33]} dxe3 {[%emt 0:03:44]} 33. Rg2 {[%emt 0:01:57]} g6 {[%emt 0:00:45]} 34. Qg5 {[%emt 0:00:55]} Re6 {[%emt 0:02:28]} 35. h4 {[%emt 0:00:49]} Qc6 {[%emt 0:09:23]} 36. Qh6 {[%emt 0:01:20]} Nh5 {[%emt 0:05:26]} 37. Kg1 {[%emt 0:00:34]} e2 {[%emt 0:00:52]} 38. Rg5 {[%emt 0:01:16]} Qb6+ {[%emt 0:05:13]} 39. Kh2 {[%emt 0:00:54]} Qf2+ {[%emt 0:00:21]} 40. Kh3 {[%emt 0:00:45]} Re3+ {[%emt 0:00:11]} 41. Kg4 {[%emt 0:30:21]} R8e4# {[%emt 0:30:22]} 0-1

[Event "44th Chess Olympiad Open 2022"]
[Site "Chennai"]
[Date "2022.08.09"]
[Round "11.78"]
[White "Hashem, Khaled"]
[Black "Ahmad, Md Siraj Munir"]
[Result "1-0"]
[ECO "D78"]
[WhiteElo "1870"]
[BlackElo "2035"]
[Annotator "NA RC"]
[PlyCount "67"]
[EventDate "2022.07.29"]
[EventType "team-tourn"]
[EventCountry "IND"]
[SourceTitle "playchess.com"]
[Source "ChessBase"]
[SourceQuality "1"]
[WhiteTeam "Kuwait"]
[BlackTeam "Brunei"]
[WhiteTeamCountry "KUW"]
[BlackTeamCountry "BRN"]
[TimeControl "40/5400+30:1800+30"]

1. d4 {[%emt 0:00:03]} d5 {[%emt 0:00:38]} 2. Nf3 {[%emt 0:00:09]} Nf6 {[%emt 0:00:21]} 3. g3 {[%emt 0:00:05]} g6 {[%emt 0:01:04]} 4. Bg2 {[%emt 0:00:04]} Bg7 {[%emt 0:00:07]} 5. O-O {[%emt 0:00:09]} O-O {[%emt 0:00:50]} 6. c4 {[%emt 0:00:09]} c6 {[%emt 0:04:43]} 7. Nbd2 {[%emt 0:00:37]} Nbd7 {[%emt 0:04:42]} 8. b3 {[%emt 0:02:37]} b6 {[%emt 0:01:17]} 9. Bb2 {[%emt 0:00:29]} Bb7 {[%emt 0:00:28]} 10. Re1 {[%emt 0:02:43]} Rc8 {[%emt 0:04:56]} 11. Qb1 {[%emt 0:03:28]} c5 {[%emt 0:05:23]} 12. e3 {[%emt 0:11:17]} h6 {[%emt 0:02:19]} 13. cxd5 {[%emt 0:03:41]} cxd4 {[%emt 0:03:22]} 14. e4 {[%emt 0:02:50]} d3 {[%emt 0:17:44]} 15. Qxd3 {[%emt 0:03:56]} Nc5 {[%emt 0:01:13]} 16. Qb1 {[%emt 0:01:05]} Ba6 {[%emt 0:01:25]} 17. Bf1 {[%emt 0:04:09]} Bxf1 {[%emt 0:02:26]} 18. Kxf1 {[%emt 0:01:33]} Qd7 {[%emt 0:00:15]} 19. Kg2 {[%emt 0:00:17]} Qb5 {[%emt 0:07:28]} 20. Nc4 {[%emt 0:08:10]} Ncxe4 {[%emt 0:11:53]} 21. Rxe4 {[%emt 0:00:13]} Nxe4 {[%emt 0:00:11]} 22. Bxg7 {[%emt 0:00:12]} Kxg7 {[%emt 0:00:29]} 23. Qxe4 {[%emt 0:00:06]} Qc5 {[%emt 0:07:42]} 24. Rd1 {[%emt 0:02:16]} Rcd8 {[%emt 0:03:47]} 25. Ne3 {[%emt 0:14:27]} a5 {[%emt 0:04:41]} 26. Ne5 {[%emt 0:06:17]} Rfe8 {[%emt 0:05:12]} 27. Qd4 {[%emt 0:11:11]} Qxd4 {[%emt 0:01:05]} 28. Rxd4 {[%emt 0:00:01]} f6 {[%emt 0:00:25]} 29. Nc6 {[%emt 0:04:38]} Rd7 {[%emt 0:00:32]} 30. Nc4 {[%emt 0:01:00]} Rb7 {[%emt 0:02:37]} 31. a4 {[%emt 0:01:15]} Rc8 {[%emt 0:00:54]} 32. f4 {[%emt 0:00:57]} Kf8 {[%emt 0:01:49]} 33. Re4 {[%emt 0:01:03]} Rcc7 {[%emt 0:00:45]} 34. Nd8 {[%emt 0:00:17]} 1-0

[Event "44th Chess Olympiad Open 2022"]
[Site "Chennai"]
[Date "2022.08.09"]
[Round "11.78"]
[White "Yussof, Pg Abd Rahman"]
[Black "Al Ibrahim, Abdulrahman"]
[Result "0-1"]
[ECO "D31"]
[WhiteElo "1804"]
[BlackElo "1822"]
[Annotator "NA COMBH"]
[PlyCount "68"]
[EventDate "2022.07.29"]
[EventType "team-tourn"]
[EventCountry "IND"]
[SourceTitle "playchess.com"]
[Source "ChessBase"]
[SourceQuality "1"]
[WhiteTeam "Brunei"]
[BlackTeam "Kuwait"]
[WhiteTeamCountry "BRN"]
[BlackTeamCountry "KUW"]
[TimeControl "40/5400+30:1800+30"]

1. d4 {[%emt 0:00:54]} d5 {[%emt 0:00:05]} 2. c4 {[%emt 0:00:26]} e6 {[%emt 0:00:05]} 3. Nc3 {[%emt 0:01:48]} c6 {[%emt 0:00:08]} 4. Nf3 {[%emt 0:03:33]} dxc4 {[%emt 0:00:15]} 5. e4 {[%emt 0:02:06]} b5 {[%emt 0:03:12]} 6. Be2 {[%emt 0:00:52]} Bb7 {[%emt 0:00:50]} 7. O-O {[%emt 0:00:30]} Nf6 {[%emt 0:00:50]} 8. Re1 {[%emt 0:05:18]} Be7 {[%emt 0:03:08]} 9. Bg5 {[%emt 0:04:45]} h6 {[%emt 0:10:13]} 10. Bh4 {[%emt 0:01:12]} a6 {[%emt 0:05:23]} 11. Rc1 {[%emt 0:01:44]} g5 {[%emt 0:07:19]} 12. Bg3 {[%emt 0:00:30]} c5 {[%emt 0:00:36]} 13. Be5 {[%emt 0:03:38]} cxd4 {[%emt 0:03:30]} 14. Bxd4 {[%emt 0:01:14]} Nc6 {[%emt 0:01:37]} 15. b3 {[%emt 0:06:00]} Nxd4 {[%emt 0:05:07]} 16. Nxd4 {[%emt 0:05:05]} Qb6 {[%emt 0:04:21]} 17. e5 {[%emt 0:08:37]} Bc5 {[%emt 0:03:52]} 18. exf6 {[%emt 0:03:27]} Bxd4 {[%emt 0:00:05]} 19. Rf1 {[%emt 0:00:32]} Rd8 {[%emt 0:02:53]} 20. Qc2 {[%emt 0:01:25]} cxb3 {[%emt 0:01:16]} 21. Qxb3 {[%emt 0:01:43]} Bxf6 {[%emt 0:00:39]} 22. Na4 {[%emt 0:01:52]} Qa5 {[%emt 0:00:49]} 23. Nc3 {[%emt 0:02:12]} O-O {[%emt 0:04:22]} 24. a4 {[%emt 0:03:11]} Rd2 {[%emt 0:04:59]} 25. Bh5 {[%emt 0:03:27]} b4 {[%emt 0:01:43]} 26. Nb1 {[%emt 0:02:13]} Rb2 {[%emt 0:01:39]} 27. Qg3 {[%emt 0:01:28]} Qe5 {[%emt 0:07:08]} 28. Qh3 {[%emt 0:02:22]} Qf4 {[%emt 0:02:24]} 29. Rce1 {[%emt 0:06:15]} Rc8 {[%emt 0:05:53]} 30. Qd3 {[%emt 0:08:42]} Bd5 {[%emt 0:06:33]} 31. Qxa6 {[%emt 0:02:52]} Rcc2 {[%emt 0:00:10]} 32. Qb5 {[%emt 0:01:24]} Bd4 {[%emt 0:00:53]} 33. Qe8+ {[%emt 0:07:52]} Kg7 {[%emt 0:00:08]} 34. Rd1 {[%emt 0:04:23]} Rxf2 {[%emt 0:01:45]} 0-1

[Event "44th Chess Olympiad Open 2022"]
[Site "Chennai"]
[Date "2022.08.09"]
[Round "11.78"]
[White "Alhejab, Meshal"]
[Black "Sharikhan, Shawal"]
[Result "1-0"]
[ECO "B92"]
[WhiteElo "1732"]
[BlackElo "1789"]
[Annotator "NA RC COMBH"]
[PlyCount "53"]
[EventDate "2022.07.29"]
[EventType "team-tourn"]
[EventCountry "IND"]
[SourceTitle "playchess.com"]
[Source "ChessBase"]
[SourceQuality "1"]
[WhiteTeam "Kuwait"]
[BlackTeam "Brunei"]
[WhiteTeamCountry "KUW"]
[BlackTeamCountry "BRN"]
[TimeControl "40/5400+30:1800+30"]

1. e4 {[%emt 0:00:03]} c5 {[%emt 0:00:30]} 2. Nf3 {[%emt 0:00:07]} d6 {[%emt 0:00:07]} 3. d4 {[%emt 0:00:05]} cxd4 {[%emt 0:00:05]} 4. Nxd4 {[%emt 0:00:12]} Nf6 {[%emt 0:00:06]} 5. Nc3 {[%emt 0:00:40]} a6 {[%emt 0:00:10]} 6. Be2 {[%emt 0:00:05]} e5 {[%emt 0:00:32]} 7. Nb3 {[%emt 0:00:18]} Be7 {[%emt 0:00:08]} 8. Be3 {[%emt 0:00:15]} Be6 {[%emt 0:01:16]} 9. Qd3 {[%emt 0:01:54]} Nbd7 {[%emt 0:00:58]} 10. Nd5 {[%emt 0:00:22]} Bxd5 {[%emt 0:00:47]} 11. exd5 {[%emt 0:00:07]} O-O {[%emt 0:00:22]} 12. c4 {[%emt 0:00:38]} Rc8 {[%emt 0:01:59]} 13. O-O {[%emt 0:00:37]} Ne8 {[%emt 0:03:55]} 14. Rac1 {[%emt 0:06:42]} f5 {[%emt 0:00:55]} 15. f4 {[%emt 0:05:13]} e4 {[%emt 0:05:37]} 16. Qd2 {[%emt 0:03:51]} Bf6 {[%emt 0:01:43]} 17. Nd4 {[%emt 0:01:50]} Bxd4 {[%emt 0:01:58]} 18. Bxd4 {[%emt 0:00:17]} Qe7 {[%emt 0:04:24]} 19. b4 {[%emt 0:04:36]} Nef6 {[%emt 0:02:19]} 20. Qe3 {[%emt 0:02:01]} Kh8 {[%emt 0:02:52]} 21. Rfd1 {[%emt 0:11:04]} a5 {[%emt 0:02:14]} 22. a3 {[%emt 0:08:52]} axb4 {[%emt 0:03:10]} 23. axb4 {[%emt 0:00:12]} h6 {[%emt 0:09:36]} 24. Qh3 {[%emt 0:00:57]} Nh7 {[%emt 0:01:59]} 25. Qxh6 {[%emt 0:07:29]} Ndf6 {[%emt 0:05:24]} 26. Qg6 {[%emt 0:03:27]} Qf7 {[%emt 0:03:12]} 27. Qxf5 {[%emt 0:00:48]} 1-0

[Event "44th Chess Olympiad Open 2022"]
[Site "Chennai"]
[Date "2022.08.09"]
[Round "11.79"]
[White "Naipal, Hoolan"]
[Black "Sihlongonyane, Sikhanyiso"]
[Result "1-0"]
[ECO "B51"]
[WhiteElo "1785"]
[BlackElo "1658"]
[Annotator "NA RC COMBH"]
[PlyCount "167"]
[EventDate "2022.07.29"]
[EventType "team-tourn"]
[EventCountry "IND"]
[SourceTitle "playchess.com"]
[Source "ChessBase"]
[SourceQuality "1"]
[WhiteTeam "Mauritius"]
[BlackTeam "SWZ"]
[WhiteTeamCountry "MRI"]
[TimeControl "40/5400+30:1800+30"]

1. e4 {[%emt 0:00:05]} c5 {[%emt 0:00:21]} 2. Nf3 {[%emt 0:00:06]} d6 {[%emt 0:00:10]} 3. Bb5+ {[%emt 0:00:15]} Nd7 {[%emt 0:00:19]} 4. O-O {[%emt 0:00:18]} a6 {[%emt 0:00:13]} 5. Bd3 {[%emt 0:01:19]} Ngf6 {[%emt 0:00:28]} 6. c3 {[%emt 0:00:10]} e6 {[%emt 0:00:15]} 7. Bc2 {[%emt 0:00:08]} Be7 {[%emt 0:00:10]} 8. d4 {[%emt 0:00:10]} cxd4 {[%emt 0:00:50]} 9. cxd4 {[%emt 0:00:09]} O-O {[%emt 0:00:29]} 10. Nc3 {[%emt 0:02:32]} b5 {[%emt 0:01:50]} 11. e5 {[%emt 0:02:58]} dxe5 {[%emt 0:06:45]} 12. dxe5 {[%emt 0:00:09]} Ng4 {[%emt 0:04:00]} 13. Be4 {[%emt 0:08:11]} Ra7 {[%emt 0:03:49]} 14. Bf4 {[%emt 0:01:06]} f5 {[%emt 0:12:47]} 15. exf6 {[%emt 0:02:30]} Bxf6 {[%emt 0:19:24]} 16. Bd6 {[%emt 0:05:34]} Be7 {[%emt 0:11:47]} 17. Bxe7 {[%emt 0:25:09]} Qxe7 {[%emt 0:00:28]} 18. Qe2 {[%emt 0:02:26]} Ndf6 {[%emt 0:05:50]} 19. Bc2 {[%emt 0:01:07]} b4 {[%emt 0:02:45]} 20. Ne4 {[%emt 0:00:39]} Nxe4 {[%emt 0:00:04]} 21. Qxe4 {[%emt 0:01:12]} Nf6 {[%emt 0:00:03]} 22. Qe2 {[%emt 0:01:03]} Nd5 {[%emt 0:02:29]} 23. g3 {[%emt 0:02:23]} Qf6 {[%emt 0:00:49]} 24. Ne5 {[%emt 0:00:28]} Rc7 {[%emt 0:00:47]} 25. Rac1 {[%emt 0:04:03]} Bb7 {[%emt 0:00:55]} 26. Bb3 {[%emt 0:08:15]} Rxc1 {[%emt 0:05:52]} 27. Rxc1 {[%emt 0:00:05]} Qh6 {[%emt 0:00:10]} 28. Re1 {[%emt 0:01:33]} Qh3 {[%emt 0:01:27]} 29. Qg4 {[%emt 0:02:53]} Qxg4 {[%emt 0:04:50]} 30. Nxg4 {[%emt 0:00:06]} Re8 {[%emt 0:03:49]} 31. h4 {[%emt 0:00:55]} Kf7 {[%emt 0:01:19]} 32. Ne5+ {[%emt 0:03:02]} Ke7 {[%emt 0:01:39]} 33. Nc4 {[%emt 0:05:15]} Rc8 {[%emt 0:01:42]} 34. Nd2 {[%emt 0:01:49]} h6 {[%emt 0:01:54]} 35. f4 {[%emt 0:04:16]} Kf7 {[%emt 0:03:00]} 36. Nc4 {[%emt 0:00:11]} Rd8 {[%emt 0:02:02]} 37. Ne5+ {[%emt 0:04:54]} Kf6 {[%emt 0:00:08]} 38. Rd1 {[%emt 0:02:05]} g5 {[%emt 0:02:04]} 39. Ng4+ {[%emt 0:01:40]} Kg7 {[%emt 0:00:46]} 40. fxg5 {[%emt 0:00:53]} hxg5 {[%emt 0:00:01]} 41. h5 {[%emt 0:30:25]} Rh8 {[%emt 0:31:09]} 42. h6+ {[%emt 0:00:11]} Kg6 {[%emt 0:00:49]} 43. Ne5+ {[%emt 0:04:33]} Kf6 {[%emt 0:00:00]} 44. Re1 {[%emt 0:00:00]} Nc7 {[%emt 0:00:00]} 45. Bc2 {[%emt 0:00:00]} Nb5 {[%emt 0:00:00]} 46. Ng4+ {[%emt 0:00:00]} Ke7 {[%emt 0:00:00]} 47. Be4 {[%emt 0:00:00]} Nd6 {[%emt 0:00:00]} 48. Bxb7 {[%emt 0:00:00]} Nxb7 {[%emt 0:00:00]} 49. Re5 {[%emt 0:00:00]} Rg8 {[%emt 0:00:00]} 50. Re4 {[%emt 0:00:00]} a5 {[%emt 0:00:00]} 51. Rc4 {[%emt 0:00:00]} Kd6 {[%emt 0:00:00]} 52. Rd4+ {[%emt 0:00:00]} Ke7 {[%emt 0:00:00]} 53. Ne5 {[%emt 0:01:10]} Kf6 {[%emt 0:00:00]} 54. Ng4+ {[%emt 0:04:39]} Kf5 {[%emt 0:00:00]} 55. Kg2 {[%emt 0:01:31]} e5 {[%emt 0:00:00]} 56. Rd7 {[%emt 0:02:04]} Kxg4 {[%emt 0:01:55]} 57. Rxb7 {[%emt 0:00:06]} Rh8 {[%emt 0:00:48]} 58. h7 {[%emt 0:01:25]} e4 {[%emt 0:01:36]} 59. Kf2 {[%emt 0:00:32]} e3+ {[%emt 0:00:52]} 60. Kxe3 {[%emt 0:00:26]} Kxg3 {[%emt 0:00:08]} 61. Rg7 {[%emt 0:00:54]} g4 {[%emt 0:00:10]} 62. b3 {[%emt 0:00:22]} Re8+ {[%emt 0:00:31]} 63. Kd3 {[%emt 0:00:23]} Rh8 {[%emt 0:00:10]} 64. Ke4 {[%emt 0:00:38]} Kh2 {[%emt 0:02:07]} 65. Rxg4 {[%emt 0:00:53]} Rxh7 {[%emt 0:00:03]} 66. Rg5 {[%emt 0:00:32]} Ra7 {[%emt 0:01:50]} 67. Kd4 {[%emt 0:00:05]} Kh3 {[%emt 0:01:48]} 68. Kc4 {[%emt 0:00:08]} Kh4 {[%emt 0:00:15]} 69. Rg6 {[%emt 0:00:43]} Kh5 {[%emt 0:01:07]} 70. Rc6 {[%emt 0:00:34]} a4 {[%emt 0:00:57]} 71. Kxb4 {[%emt 0:00:22]} axb3 {[%emt 0:00:03]} 72. axb3 {[%emt 0:00:12]} Ra1 {[%emt 0:00:55]} 73. Kb5 {[%emt 0:00:29]} Rb1 {[%emt 0:00:35]} 74. b4 {[%emt 0:00:06]} Kg5 {[%emt 0:00:13]} 75. Rc2 {[%emt 0:00:36]} Kf6 {[%emt 0:00:47]} 76. Re2 {[%emt 0:01:24]} Kf5 {[%emt 0:00:32]} 77. Kc5 {[%emt 0:00:14]} Rc1+ {[%emt 0:00:04]} 78. Kb6 {[%emt 0:00:08]} Kf6 {[%emt 0:01:02]} 79. b5 {[%emt 0:00:16]} Rb1 {[%emt 0:00:22]} 80. Kc6 {[%emt 0:00:24]} Rc1+ {[%emt 0:00:03]} 81. Kb7 {[%emt 0:00:06]} Rb1 {[%emt 0:00:45]} 82. b6 {[%emt 0:00:04]} Kf7 {[%emt 0:00:45]} 83. Rc2 {[%emt 0:00:20]} Ke7 {[%emt 0:00:35]} 84. Kc7 {[%emt 0:00:13]} 1-0